fUSD/lending_fUSD_20260605
["ID","MTS","AMOUNT","RATE_DAILY","PERIOD"]
[424178132,1780629230000,-646.56461851,0.00011654,2]
[424178139,1780629283000,-1032.5298118,0.00011655,2]
[424178143,1780629298000,-1032.5298118,0.00011655,2]
[424178144,1780629312000,-2664.95,0.00011655,2]
[424178145,1780629341000,152.0,0.00013241,7]
[424178146,1780629552000,1011.86624107,0.0001075,30]
[424178148,1780629561000,4222.2307999,8e-05,2]
[424178147,1780629561000,5025.02308726,8e-05,2]
[424178149,1780629592000,15361.31643343,0.00013,5]
[424178150,1780629592000,8983.92175998,0.00013,5]
[424178151,1780629638000,-500.0,0.00011555,2]
[424178152,1780629691000,-248.06028936,0.00011605,2]
[424178153,1780629702000,160.62,0.00030137,120]
[424178155,1780629744000,-215.77576141,0.00011748,2]
[424178156,1780629745000,514.58932859,0.0001,2]
[424178163,1780629751000,7.52422823,9.04e-05,2]
[424178160,1780629751000,5200.49308726,9.04e-05,2]
[424178161,1780629751000,5200.49308726,9.04e-05,2]
[424178158,1780629751000,5200.49308726,9.04e-05,2]
[424178159,1780629751000,5200.49308726,9.04e-05,2]
[424178157,1780629751000,463.67295877,9.04e-05,2]
[424178162,1780629751000,5200.49308726,9.04e-05,2]
[424178164,1780629798000,-250.0,0.0001271,2]
[424178168,1780629851000,-278.28957408,0.00012912,2]
[424178170,1780629905000,-1292.9079,0.000129,2]
[424178171,1780629959000,-500.0,0.00011505,2]
[424178172,1780630012000,-2644.23935187,0.00013,2]
[424178173,1780630030000,-215.77576141,0.00012917,2]
[424178174,1780630083000,-684.76614143,0.00013,2]
[424178175,1780630153000,6335.30909185,0.00030136,120]
[424178194,1780630232000,-354.73944076,0.00013,2]
[424178196,1780630232000,-449.0,0.00013,2]
[424178200,1780630232000,-31.21270017,0.00013,2]
[424178203,1780630232000,-224.78729983,0.00013,2]
[424178215,1780630232000,-18.00903637,0.00013,2]
[424178207,1780630232000,-451.0,0.00013,2]
[424178213,1780630232000,-441.0,0.00013,2]
[424178217,1780630232000,-450.0,0.00013,2]
[424178222,1780630232000,-445.0,0.00013,2]
[424178240,1780630232000,-9999.99,0.00013976,2]
[424178211,1780630232000,-456.0,0.00013,2]
[424178212,1780630232000,-458.0,0.00013,2]
[424178228,1780630232000,-457.0,0.00013,2]
[424178216,1780630232000,-458.0,0.00013,2]
[424178243,1780630232000,-1582.07,0.00013976,2]
[424178184,1780630232000,-500.0,0.00012999,2]
[424178214,1780630232000,-430.99096363,0.00013,2]
[424178181,1780630232000,-153.57027546,0.00012999,2]
[424178193,1780630232000,-441.0,0.00013,2]
[424178186,1780630232000,-163.98410067,0.00012999,2]
[424178195,1780630232000,-97.26055924,0.00013,2]
[424178185,1780630232000,-282.02370084,0.00012999,2]
[424178202,1780630232000,-447.0,0.00013,2]
[424178187,1780630232000,-500.0,0.00012999,2]
[424178199,1780630232000,-425.78729983,0.00013,2]
[424178180,1780630232000,-1046.42972454,0.00012999,2]
[424178182,1780630232000,-150.0,0.00012999,2]
[424178192,1780630232000,-446.0,0.00013,2]
[424178190,1780630232000,-500.0,0.00013,2]
[424178201,1780630232000,-447.0,0.00013,2]
[424178191,1780630232000,-543.06543343,0.00013,2]
[424178198,1780630232000,-26.26055924,0.00013,2]
[424178183,1780630232000,-278.33562639,0.00012999,2]
[424178188,1780630232000,-547.41659059,0.00012999,2]
[424178189,1780630232000,-1313.38798748,0.00013,2]
[424178197,1780630232000,-430.73944076,0.00013,2]
[424178220,1780630232000,-457.0,0.00013,2]
[424178231,1780630232000,-1502.53,0.00013632,2]
[424178208,1780630232000,-187.99096363,0.00013,2]
[424178257,1780630232000,-47293.63759218,0.00014109,2]
[424178225,1780630232000,-445.0,0.00013,2]
[424178254,1780630232000,-200.0,0.000141,5]
[424178248,1780630232000,-1103.97,0.0001398,2]
[424178259,1780630232000,-24291.42084181,0.00014109,2]
[424178247,1780630232000,-3751.16,0.0001398,2]
[424178250,1780630232000,-629.36,0.0001398,2]
[424178246,1780630232000,-3018.71,0.0001398,2]
[424178253,1780630232000,-282.12893504,0.00014099,2]
[424178255,1780630232000,-255.0,0.00014104,2]
[424178249,1780630232000,-150.99,0.0001398,2]
[424178258,1780630232000,-3636.05805881,0.00014109,2]
[424178252,1780630232000,-1500.0,0.00014,2]
[424178251,1780630232000,-250.0,0.00014,2]
[424178244,1780630232000,-4999.99,0.0001398,2]
[424178260,1780630232000,-764.39870213,0.00014109,2]
[424178245,1780630232000,-24999.99,0.0001398,2]
[424178238,1780630232000,-9999.99,0.00013976,2]
[424178256,1780630232000,-45815.23562212,0.00014109,2]
[424178236,1780630232000,-166.66,0.00013976,2]
[424178206,1780630232000,-223.21270017,0.00013,2]
[424178224,1780630232000,-457.0,0.00013,2]
[424178232,1780630232000,-166.66,0.00013699,2]
[424178241,1780630232000,-521.5,0.00013976,2]
[424178218,1780630232000,-445.0,0.00013,2]
[424178227,1780630232000,-446.0,0.00013,2]
[424178235,1780630232000,-166.66,0.00013837,2]
[424178239,1780630232000,-119057.84,0.00013976,2]
[424178210,1780630232000,-450.0,0.00013,2]
[424178234,1780630232000,-150.0,0.00013791,2]
[424178229,1780630232000,-215.77576141,0.00013007,2]
[424178226,1780630232000,-451.0,0.00013,2]
[424178230,1780630232000,-4354.11995333,0.0001305,2]
[424178237,1780630232000,-9999.99,0.00013976,2]
[424178242,1780630232000,-1198.18,0.00013976,2]
[424178209,1780630232000,-255.00903637,0.00013,2]
[424178233,1780630232000,-200.0,0.00013699,2]
[424178267,1780630238000,-1180.40959327,0.00014109,2]
[424178265,1780630238000,-1880.0745,0.00014109,2]
[424178266,1780630238000,-50055.72766956,0.00014109,2]
[424178268,1780630238000,-7172.88175248,0.00014109,2]
[424178351,1780630240000,-999.21765633,0.00014109,2]
[424178354,1780630240000,-1547.11584696,0.00014109,2]
[424178353,1780630240000,-35872.86341125,0.00014109,2]
[424178355,1780630240000,-1124.47699272,0.00014109,2]
[424178356,1780630240000,-1128.12,0.0001364,2]
[424178352,1780630240000,-1731543.39889963,0.00014109,2]
[424178357,1780630240000,-538.78688967,0.00014109,2]
[424178370,1780630243000,-2922.88970174,0.00014109,2]
[424178369,1780630243000,-1526.01080831,0.00014109,2]
[424178368,1780630243000,-22949.74625419,0.00014109,2]
[424178367,1780630243000,-2074.89849894,0.00014109,2]
[424178364,1780630243000,-2985.13366735,0.00014109,2]
[424178365,1780630243000,-397.64067212,0.00014109,2]
[424178366,1780630243000,-12474.85596157,0.00014109,2]
[424178379,1780630246000,-554.96415081,0.00014109,2]
[424178380,1780630246000,-7298.38962212,0.00014109,2]
[424178381,1780630246000,-4587.0532545,0.00014109,2]
[424178385,1780630246000,-765.56801084,0.00014109,2]
[424178384,1780630246000,-1124.45115733,0.00014109,2]
[424178386,1780630246000,-548.15193719,0.00014109,2]
[424178383,1780630246000,-4740.89423256,0.00014109,2]
[424178382,1780630246000,-932.0,0.00014109,2]
[424178393,1780630335000,510.0,0.00030137,120]
[424178394,1780630433000,-1000.0,0.0001297,2]
[424178395,1780630486000,-200.0,0.00012857,2]
[424178404,1780630540000,-168.39,0.00012742,2]
[424178405,1780630593000,-854.59231375,0.00012888,2]
[424178406,1780630607000,-854.59231375,0.00012888,2]
[424178408,1780630621000,548.0,0.00030136,120]
[424178407,1780630621000,-1053.6553725,0.00012888,2]
[424178409,1780630640000,500.0,0.00030136,120]
[424178410,1780630674000,-236.44,0.00012737,2]
[424178411,1780630727000,-1200.0,0.00013023,2]
[424178412,1780630731000,10000.0,0.00030137,120]
[424178413,1780630741000,10000.0,0.00030137,120]
[424178414,1780630749000,10000.0,0.00030137,120]
[424178415,1780630764000,9594.0,0.00030137,120]
[424178416,1780630781000,-1173.85766674,0.00012644,2]
[424178417,1780630795000,-826.14233326,0.00012644,2]
[424178423,1780630924000,176.62,0.00029234,120]
[424178431,1780631201000,-150.0,0.00012517,2]
[424178432,1780631201000,-317.26562844,0.00012549,2]
[424178433,1780631240000,200.0,0.000128,4]
[424178434,1780631242000,400.0,0.000129,4]
[424178436,1780631319000,-500.0,0.00012277,2]
[424178437,1780631345000,2000.0,0.00030136,120]
[424178438,1780631372000,-1000.0,0.00012312,2]
[424178440,1780631426000,-5801.5,0.00012335,2]
[424178449,1780631432000,-255.58417578,0.00012547,2]
[424178450,1780631432000,-289.16507999,0.00012548,2]
[424178451,1780631432000,-362.38190614,0.00012548,2]
[424178448,1780631432000,-944.41582422,0.00012547,2]
[424178452,1780631432000,-2658.34,0.00012197,2]
[424178454,1780631432000,-500.0,0.00012548,2]
[424178453,1780631432000,-268.11263942,0.00012548,2]
[424178456,1780631432000,-1535.15437156,0.00012549,2]
[424178457,1780631432000,-390.73,0.00012569,2]
[424178455,1780631432000,-164.01066053,0.00012548,2]
[424178458,1780631432000,-215.77576141,0.00012575,2]
[424178459,1780631432000,-7406.39,0.00012576,2]
[424178471,1780631432000,-2658.34,0.00012502,2]
[424178460,1780631432000,-176.62,0.00012591,2]
[424178473,1780631432000,-28991.13227272,0.0001294,2]
[424178461,1780631432000,-160.0,0.00012636,2]
[424178467,1780631432000,-1519.42,0.000129,2]
[424178462,1780631432000,-5005.88543041,0.000129,2]
[424178466,1780631432000,-269.53436876,0.000129,2]
[424178470,1780631432000,-389.01559595,0.0001294,2]
[424178463,1780631432000,-256.10544332,0.000129,2]
[424178464,1780631432000,-7147.56,0.000129,2]
[424178469,1780631432000,-42918.86363399,0.0001294,2]
[424178468,1780631432000,-1000.0,0.00012939,2]
[424178465,1780631432000,-1612.5,0.000129,2]
[424178474,1780631437000,1082.0,0.00028493,120]
[424178496,1780631438000,-450.0,0.00013024,2]
[424178484,1780631438000,-233.43,0.00013,2]
[424178494,1780631438000,-457.0,0.00013024,2]
[424178486,1780631438000,-441.0,0.00013024,2]
[424178490,1780631438000,-443.0,0.00013024,2]
[424178489,1780631438000,-445.0,0.00013024,2]
[424178488,1780631438000,-450.0,0.00013024,2]
[424178487,1780631438000,-459.0,0.00013024,2]
[424178491,1780631438000,-454.0,0.00013024,2]
[424178481,1780631438000,-144.17815921,0.00012575,2]
[424178483,1780631438000,-2427700.98849734,0.0001294,2]
[424178492,1780631438000,-450.0,0.00013024,2]
[424178482,1780631438000,-2658.34,0.00012807,2]
[424178485,1780631438000,-150.0,0.00013023,2]
[424178478,1780631438000,-121.85857869,0.00012575,2]
[424178479,1780631438000,-80.55697731,0.00012575,2]
[424178477,1780631438000,-614.80746237,0.00012575,2]
[424178480,1780631438000,-297.16802269,0.00012575,2]
[424178506,1780631438000,-444.0,0.00013029,2]
[424178493,1780631438000,-444.0,0.00013024,2]
[424178497,1780631438000,-457.0,0.00013024,2]
[424178505,1780631438000,-455.0,0.00013029,2]
[424178499,1780631438000,-446.0,0.00013024,2]
[424178495,1780631438000,-443.0,0.00013024,2]
[424178521,1780631438000,-443.0,0.00013105,2]
[424178522,1780631438000,-2658.34,0.00013112,2]
[424178513,1780631438000,-450.0,0.00013073,2]
[424178516,1780631438000,-451.0,0.00013073,2]
[424178515,1780631438000,-443.0,0.00013073,2]
[424178514,1780631438000,-444.0,0.00013073,2]
[424178520,1780631438000,-447.0,0.00013105,2]
[424178519,1780631438000,-447.0,0.00013105,2]
[424178517,1780631438000,-170.5,0.00013073,2]
[424178518,1780631438000,-450.0,0.00013105,2]
[424178511,1780631438000,-156.44,0.0001304,2]
[424178509,1780631438000,-457.0,0.00013035,2]
[424178507,1780631438000,-447.0,0.00013035,2]
[424178504,1780631438000,-454.0,0.00013024,2]
[424178502,1780631438000,-445.0,0.00013024,2]
[424178503,1780631438000,-446.0,0.00013024,2]
[424178501,1780631438000,-441.0,0.00013024,2]
[424178500,1780631438000,-449.0,0.00013024,2]
[424178498,1780631438000,-446.0,0.00013024,2]
[424178512,1780631438000,-457.0,0.00013051,2]
[424178591,1780631439000,-900.0,0.000138,5]
[424178589,1780631439000,-841.3188791,0.00013791,2]
[424178587,1780631439000,-2274.60278587,0.00013791,2]
[424178583,1780631439000,-406.53847781,0.00013791,2]
[424178567,1780631439000,-5005.88543038,0.00013757,2]
[424178581,1780631439000,-300.0,0.00013769,2]
[424178571,1780631439000,-600.0,0.00013769,2]
[424178573,1780631439000,-300.0,0.00013769,2]
[424178593,1780631439000,-1680.0,0.00013802,2]
[424178585,1780631439000,-4328.48051187,0.00013791,2]
[424178595,1780631439000,-600.0,0.00013804,2]
[424178619,1780631439000,-4178.2982,0.00013809,2]
[424178599,1780631439000,-2966.25934929,0.00013804,2]
[424178601,1780631439000,-200.0,0.00013804,2]
[424178603,1780631439000,-200.0,0.00013804,2]
[424178613,1780631439000,-300.0,0.00013804,2]
[424178605,1780631439000,-200.0,0.00013804,2]
[424178615,1780631439000,-300.0,0.00013804,2]
[424178611,1780631439000,-500.0,0.00013804,2]
[424178609,1780631439000,-306.9279754,0.00013804,2]
[424178607,1780631439000,-200.0,0.00013804,2]
[424178569,1780631439000,-600.0,0.00013769,2]
[424178617,1780631439000,-297.26644276,0.00013804,2]
[424178621,1780631439000,-45637.5948,0.00013809,2]
[424178597,1780631439000,-150.05881973,0.00013804,2]
[424178577,1780631439000,-300.0,0.00013769,2]
[424178542,1780631439000,-150.0,0.00013488,2]
[424178579,1780631439000,-300.0,0.00013769,2]
[424178631,1780631439000,-166.66,0.00013973,2]
[424178532,1780631439000,-1500000.0,0.00013348,2]
[424178534,1780631439000,-2658.34,0.00013417,2]
[424178536,1780631439000,-453.0,0.00013449,2]
[424178538,1780631439000,-446.0,0.00013449,2]
[424178523,1780631439000,-446.0,0.00013152,2]
[424178528,1780631439000,-446.0,0.00013219,2]
[424178527,1780631439000,-442.0,0.00013219,2]
[424178526,1780631439000,-5005.88543038,0.00013186,2]
[424178524,1780631439000,-457.0,0.00013152,2]
[424178525,1780631439000,-238.42480492,0.00013175,7]
[424178565,1780631439000,-700.0,0.000137,5]
[424178530,1780631439000,-442.0,0.00013313,2]
[424178540,1780631439000,-5005.88543038,0.00013471,2]
[424178552,1780631439000,-447.0,0.00013639,2]
[424178548,1780631439000,-1900.86407485,0.00013543,2]
[424178559,1780631439000,-166.66,0.00013699,2]
[424178544,1780631439000,-150.0,0.00013488,2]
[424178555,1780631439000,-456.0,0.00013639,2]
[424178546,1780631439000,-193.0,0.00013543,2]
[424178557,1780631439000,-6132.12,0.00013699,2]
[424178549,1780631439000,-459.0,0.00013639,2]
[424178561,1780631439000,-2500.0,0.00013699,2]
[424178563,1780631439000,-200.0,0.00013699,2]
[424178529,1780631439000,-458.0,0.00013313,2]
[424178637,1780631439000,-509.41764498,0.00014002,2]
[424178575,1780631439000,-300.0,0.00013769,2]
[424178633,1780631439000,-250.0,0.00014,2]
[424178682,1780631439000,-500.0,0.00014108,2]
[424178688,1780631439000,-500.0,0.00014108,2]
[424178680,1780631439000,-500.0,0.00014108,2]
[424178692,1780631439000,-500.0,0.00014108,2]
[424178694,1780631439000,-500.0,0.00014108,2]
[424178696,1780631439000,-500.0,0.00014108,2]
[424178698,1780631439000,-500.0,0.00014108,2]
[424178712,1780631439000,-27119.94,0.00014164,2]
[424178714,1780631439000,-509.41764493,0.00014202,2]
[424178716,1780631439000,-266.66127466,0.0001421,7]
[424178718,1780631439000,-2000.0,0.00014225,2]
[424178700,1780631439000,-500.0,0.00014108,2]
[424178702,1780631439000,-500.0,0.00014108,2]
[424178704,1780631439000,-443.0,0.00014109,2]
[424178710,1780631439000,-255.0,0.0001413,2]
[424178706,1780631439000,-456.0,0.00014109,2]
[424178708,1780631439000,-166.66,0.0001411,2]
[424178720,1780631439000,-166.66,0.00014247,2]
[424178724,1780631439000,-5005.88543038,0.00014329,2]
[424178722,1780631439000,-509.41764493,0.00014301,2]
[424178728,1780631439000,-10475.39936161,0.0001439,2]
[424178730,1780631439000,-1239.87853938,0.000144,2]
[424178732,1780631439000,-509.41764493,0.00014401,2]
[424178734,1780631439000,-509.41764493,0.00014501,2]
[424178623,1780631439000,-3763.6908,0.00013809,2]
[424178686,1780631439000,-500.0,0.00014108,2]
[424178690,1780631439000,-500.0,0.00014108,2]
[424178726,1780631439000,-166.66,0.00014384,2]
[424178678,1780631439000,-500.0,0.00014108,2]
[424178684,1780631439000,-500.0,0.00014108,2]
[424178635,1780631439000,-2500.0,0.00014001,2]
[424178639,1780631439000,-1000.0,0.00014008,2]
[424178625,1780631439000,-166.66,0.00013836,2]
[424178627,1780631439000,-1200.0,0.000139,5]
[424178643,1780631439000,-5005.88543038,0.00014043,2]
[424178641,1780631439000,-785.0,0.00014009,2]
[424178640,1780631439000,-1120.699,0.00014009,2]
[424178657,1780631439000,-500.0,0.000141,2]
[424178651,1780631439000,-500.0,0.000141,2]
[424178645,1780631439000,-500.0,0.000141,2]
[424178655,1780631439000,-414.87251469,0.000141,2]
[424178629,1780631439000,-269.53436874,0.000139,2]
[424178647,1780631439000,-500.0,0.000141,2]
[424178659,1780631439000,-500.0,0.000141,2]
[424178676,1780631439000,-1793.9779606,0.00014103,2]
[424178672,1780631439000,-509.41764493,0.00014102,2]
[424178674,1780631439000,-768.964998,0.00014102,2]
[424178736,1780631439000,-200.0,0.000146,5]
[424178668,1780631439000,-284.8641046,0.00014101,2]
[424178670,1780631439000,-1673275.7967588,0.00014101,2]
[424178661,1780631439000,-500.0,0.000141,2]
[424178653,1780631439000,-500.0,0.000141,2]
[424178663,1780631439000,-500.0,0.000141,2]
[424178649,1780631439000,-500.0,0.000141,2]
[424178665,1780631439000,-500.0,0.000141,2]
[424178813,1780631440000,-500.0,0.00014799,2]
[424178805,1780631440000,-500.0,0.00014799,2]
[424178815,1780631440000,-500.0,0.00014799,2]
[424178818,1780631440000,-500.0,0.00014799,2]
[424178821,1780631440000,-500.0,0.00014799,2]
[424178816,1780631440000,-500.0,0.00014799,2]
[424178820,1780631440000,-500.0,0.00014799,2]
[424178819,1780631440000,-500.0,0.00014799,2]
[424178828,1780631440000,-168.39,0.00014866,2]
[424178823,1780631440000,-500.0,0.00014799,2]
[424178827,1780631440000,-159.20030228,0.00014833,2]
[424178825,1780631440000,-200.0,0.000148,5]
[424178826,1780631440000,-509.41764493,0.000148,2]
[424178830,1780631440000,-159.20030228,0.000149,2]
[424178824,1780631440000,-159.20030228,0.000148,2]
[424178811,1780631440000,-500.0,0.00014799,2]
[424178829,1780631440000,-159.20030228,0.00014867,2]
[424178822,1780631440000,-500.0,0.00014799,2]
[424178807,1780631440000,-500.0,0.00014799,2]
[424178780,1780631440000,-159.20030228,0.00014733,2]
[424178803,1780631440000,-500.0,0.00014799,2]
[424178831,1780631440000,-509.41764493,0.000149,2]
[424178769,1780631440000,-159.2003023,0.000147,2]
[424178771,1780631440000,-4000.0,0.000147,2]
[424178775,1780631440000,-200.0,0.000147,5]
[424178773,1780631440000,-10000.0,0.000147,2]
[424178765,1780631440000,-509.41764493,0.00014601,2]
[424178767,1780631440000,-5005.88543038,0.00014614,2]
[424178778,1780631440000,-509.41764493,0.000147,2]
[424178808,1780631440000,-500.0,0.00014799,2]
[424178790,1780631440000,-500.0,0.00014799,2]
[424178786,1780631440000,-500.0,0.00014799,2]
[424178788,1780631440000,-500.0,0.00014799,2]
[424178784,1780631440000,-500.0,0.00014799,2]
[424178782,1780631440000,-159.20030228,0.00014767,2]
[424178796,1780631440000,-500.0,0.00014799,2]
[424178794,1780631440000,-500.0,0.00014799,2]
[424178798,1780631440000,-500.0,0.00014799,2]
[424178800,1780631440000,-500.0,0.00014799,2]
[424178792,1780631440000,-500.0,0.00014799,2]
[424178834,1780631440000,-5005.88543038,0.000149,2]
[424178833,1780631440000,-200.0,0.000149,5]
[424178836,1780631440000,-1058.9,0.00014985,2]
[424178855,1780631440000,-500.0,0.00014999,2]
[424178852,1780631440000,-500.0,0.00014999,2]
[424178860,1780631440000,-500.0,0.00014999,2]
[424178866,1780631440000,-561.38174494,0.00014999,2]
[424178862,1780631440000,-500.0,0.00014999,2]
[424178869,1780631440000,-1173.85766674,0.00015,2]
[424178865,1780631440000,-500.0,0.00014999,2]
[424178863,1780631440000,-500.0,0.00014999,2]
[424178870,1780631440000,-353.50593335,0.00015,2]
[424178864,1780631440000,-543.44,0.00014999,2]
[424178868,1780631440000,-1354.17863375,0.00015,2]
[424178867,1780631440000,-994429.33430405,0.00015,2]
[424178871,1780631440000,-1920.88549741,0.00015,2]
[424178872,1780631440000,-4614.5099171,0.00015,2]
[424178873,1780631440000,-3383.59496939,0.00015,2]
[424178874,1780631440000,-1871.02531403,0.00015,2]
[424178875,1780631440000,-1240980.37809769,0.00015,2]
[424178854,1780631440000,-500.0,0.00014999,2]
[424178856,1780631440000,-500.0,0.00014999,2]
[424178861,1780631440000,-500.0,0.00014999,2]
[424178858,1780631440000,-500.0,0.00014999,2]
[424178847,1780631440000,-500.0,0.00014999,2]
[424178846,1780631440000,-500.0,0.00014999,2]
[424178839,1780631440000,-500.0,0.00014998,2]
[424178841,1780631440000,-500.0,0.00014998,2]
[424178857,1780631440000,-500.0,0.00014999,2]
[424178838,1780631440000,-173.27,0.00014985,2]
[424178837,1780631440000,-1116.8,0.00014985,2]
[424178835,1780631440000,-269.53436874,0.000149,2]
[424178842,1780631440000,-500.0,0.00014999,2]
[424178840,1780631440000,-500.0,0.00014998,2]
[424178844,1780631440000,-500.0,0.00014999,2]
[424178843,1780631440000,-500.0,0.00014999,2]
[424178853,1780631440000,-500.0,0.00014999,2]
[424178850,1780631440000,-500.0,0.00014999,2]
[424178851,1780631440000,-500.0,0.00014999,2]
[424178832,1780631440000,-21049.60487424,0.000149,3]
[424178859,1780631440000,-500.0,0.00014999,2]
[424178848,1780631440000,-487.9927468,0.00014999,2]
[424178849,1780631440000,-500.0,0.00014999,2]
[424178845,1780631440000,-500.0,0.00014999,2]
[424178888,1780631443000,-51.91845056,0.00015,2]
[424178893,1780631444000,-1751.08739935,0.00015,2]
[424178892,1780631444000,-3577.10102745,0.00015,2]
[424178895,1780631444000,-1454.3150004,0.00015,2]
[424178894,1780631444000,-846.38992985,0.00015,2]
[424178891,1780631444000,-257.55713342,0.00015,2]
[424178889,1780631444000,-243.98343128,0.00015,2]
[424178890,1780631444000,-512.53471777,0.00015,2]
[424178908,1780631446000,-247406.55188445,0.00015,2]
[424178906,1780631446000,-288.49,0.00015,2]
[424178911,1780631479000,-178.47293732,0.000129,2]
[424178912,1780631533000,-494.62613764,0.00012575,2]
[424178913,1780631571000,423.264614,0.00021983,120]
[424178914,1780631586000,-2572.30570026,0.00012924,2]
[424178915,1780631601000,-151.0,0.00012921,2]
[424178916,1780631602000,150.0,0.00012277,7]
[424178917,1780631620000,300.0,0.000125,4]
[424178919,1780631622000,600.0,0.000126,4]
[424178920,1780631624000,900.0,0.000127,4]
[424178921,1780631626000,1300.0,0.000128,4]
[424178922,1780631628000,1600.0,0.000129,4]
[424178923,1780631653000,-164.93239366,0.00012666,2]
[424178924,1780631658000,262.77778293,0.00012312,7]
[424178925,1780631659000,262.77778293,0.00012558,7]
[424178926,1780631660000,262.77778293,0.00012928,7]
[424178927,1780631707000,-150.0,0.00012452,2]
[424178928,1780631718000,805.19,0.00030099,120]
[424178932,1780631761000,152.0,0.00028321,120]
[424178931,1780631761000,152.0,0.00028301,120]
[424178930,1780631761000,152.0,0.00028301,120]
[424178929,1780631761000,-734.0769962,0.00012345,2]
[424178933,1780631837000,151.99706074,0.00012277,7]
[424178934,1780631840000,1097.6677755,0.00012923,3]
[424178935,1780631844000,800.0,0.000125,4]
[424178936,1780631846000,1600.0,0.000126,4]
[424178937,1780631849000,2500.0,0.000127,4]
[424178938,1780631850000,3300.0,0.000128,4]
[424178939,1780631852000,4200.0,0.000129,4]
[424178940,1780631874000,415.95553016,0.00013,3]
[424178941,1780631882000,3300.0,0.000125,4]
[424178942,1780631884000,6600.0,0.000126,4]
[424178943,1780631886000,10000.0,0.000127,4]
[424178945,1780631888000,12487.87547517,0.000128,4]
[424178944,1780631888000,812.12452483,0.000128,4]
[424178946,1780631890000,16700.0,0.000129,4]
[424178948,1780631938000,183.66867567,0.00013,3]
[424178950,1780632018000,852.79116443,0.00012062,7]
[424178951,1780632019000,852.79116443,0.00012304,7]
[424178952,1780632020000,852.79116443,0.00012665,7]
[424178953,1780632045000,152.0,0.00028211,120]
[424178963,1780632075000,-155.18062367,0.00012091,2]
[424178962,1780632075000,-257.47439978,0.00012091,2]
[424178960,1780632075000,-500.0,0.00012091,2]
[424178961,1780632075000,-500.0,0.00012091,2]
[424178959,1780632075000,-1200.0,0.0001209,2]
[424178957,1780632075000,-867.12342414,0.00012073,2]
[424178958,1780632075000,-168.39,0.00012085,2]
[424178955,1780632075000,-1092.04,0.00011893,2]
[424178956,1780632075000,-200.0,0.00012062,2]
[424178964,1780632075000,-59.79155241,0.00012091,2]
[424178966,1780632076000,-1362.57,0.00012091,2]
[424178965,1780632076000,-169.00307358,0.00012091,2]
[424178968,1780632076000,-3168.42692642,0.00012092,2]
[424178967,1780632076000,-300.0,0.00012091,2]
[424178969,1780632078000,-5000.0,0.00012092,2]
[424178970,1780632079000,-5000.0,0.00012092,2]
[424178972,1780632103000,-13834.09307358,0.00012092,2]
[424178976,1780632104000,-5000.0,0.00012345,2]
[424178974,1780632104000,-1631.94,0.00012345,2]
[424178975,1780632104000,-3296.9469962,0.00012345,2]
[424178973,1780632104000,-71.1130038,0.00012345,2]
[424178978,1780632105000,-499.99,0.00012345,2]
[424178979,1780632105000,-2796.9669962,0.00012345,2]
[424178977,1780632105000,-1703.0430038,0.00012345,2]
[424178981,1780632106000,-2301.95,0.00012345,2]
[424178982,1780632106000,-495.0269962,0.00012345,2]
[424178980,1780632106000,-2203.0230038,0.00012345,2]